fUST/lending_fUST_20240508
["ID","MTS","AMOUNT","RATE_DAILY","PERIOD"]
[326632419,1715170236797,-1347.83105685,0.00020911,2]
[326632420,1715170236807,-154.7215013,0.00020911,2]
[326632421,1715170236817,-469.39449574,0.00020911,2]
[326632422,1715170236828,-154.73694719,0.00020911,2]
[326632423,1715170236838,-154.76784823,0.00020911,2]
[326632424,1715170236847,-584.11436245,0.00020911,2]
[326632425,1715170236858,-316.2627358,0.00020911,2]
[326632426,1715170236868,-521.74355414,0.00020911,2]
[326632427,1715170236878,-154.7215013,0.00020911,2]
[326632428,1715170236888,-228.89821731,0.00020911,2]
[326632429,1715170236898,-154.7215013,0.00020911,2]
[326632430,1715170236908,-154.73694719,0.00020911,2]
[326632431,1715170236918,-154.7215013,0.00020911,2]
[326632432,1715170236928,-158.13417593,0.00020911,2]
[326632433,1715170236940,-193.99110083,0.00020911,2]
[326632434,1715170236950,-475.23279781,0.00020911,2]
[326632435,1715170236960,-891.52667903,0.00020911,2]
[326632436,1715170236969,-230.20249366,0.00020911,2]
[326632437,1715170236979,-236.00965182,0.00020911,2]
[326632438,1715170236989,-154.98388427,0.00020911,2]
[326632439,1715170236999,-1026.35919841,0.00020911,2]
[326632440,1715170237008,-524.11454042,0.00020911,2]
[326632441,1715170237018,-184.19282833,0.00020912,2]
[326632442,1715170237028,-500.0,0.00020912,2]
[326632443,1715170237037,-187.46582042,0.00020912,2]
[326632444,1715170237047,-52896.65251958,0.00020913,2]
[326632445,1715170237056,-479.63136895,0.00021818,2]
[326632446,1715170237065,-166.666666,0.00021918,2]
[326632447,1715170237075,-159.42165086,0.00022,2]
[326632448,1715170237085,-373.086463,0.00022264,2]
[326632449,1715170237095,-166.666666,0.00022431,2]
[326632450,1715170237105,-166.666666,0.00022944,2]
[326632451,1715170237114,-239.97634179,0.00023,2]
[326632452,1715170237123,-714.82665538,0.00023,2]
[326632453,1715170237133,-166.666666,0.00023456,2]
[326632454,1715170237142,-166.666666,0.00023969,2]
[326632455,1715170237152,-1042.71154475,0.00024,7]
[326632456,1715170237162,-166.666666,0.00024482,2]
[326632457,1715170237171,-597.96517389,0.00024557,2]
[326632458,1715170237181,-1348.61326404,0.00024657,5]
[326632459,1715170237190,-3966.74516132,0.00024657,2]
[326632460,1715170237200,-3000.0,0.00024657,2]
[326632461,1715170237210,-500.0,0.00024657,2]
[326632462,1715170237218,-500.0,0.00024657,2]
[326632463,1715170237228,-519.82,0.00024657,2]
[326632464,1715170237237,-1000.0,0.00024657,2]
[326632465,1715170237247,-32.57271095,0.00024657,2]
[326632491,1715170239887,-293.13330208,0.00024657,2]
[326632493,1715170239897,-500.0,0.00024657,2]
[326632494,1715170239906,-500.0,0.00024657,2]
[326632495,1715170239915,-500.0,0.00024657,2]
[326632496,1715170239924,-620.07481929,0.00024657,2]
[326632497,1715170239934,-500.0,0.00024657,2]
[326632498,1715170239943,-500.0,0.00024657,2]
[326632499,1715170239960,-149.37580372,0.00024657,2]
[326632501,1715170240649,-350.62419628,0.00024657,2]
[326632503,1715170240659,-500.0,0.00024657,2]
[326632505,1715170240669,-500.0,0.00024657,2]
[326632507,1715170240678,-448.91553235,0.00024657,2]
[326632509,1715170240690,-51.08446765,0.00024657,2]
[326632511,1715170240699,-500.0,0.00024657,2]
[326632513,1715170240709,-500.0,0.00024657,2]
[326632515,1715170240718,-500.0,0.00024657,2]
[326632517,1715170240727,-500.0,0.00024657,2]
[326632519,1715170240736,-500.0,0.00024657,2]
[326632521,1715170240745,-500.0,0.00024657,2]
[326632523,1715170240755,-500.0,0.00024657,2]
[326632525,1715170240764,-554.57,0.00024657,2]
[326632527,1715170240775,-500.0,0.00024657,2]
[326632529,1715170240784,-500.0,0.00024657,2]
[326632531,1715170240793,-500.0,0.00024657,2]
[326632532,1715170240805,-500.0,0.00024657,2]
[326632534,1715170240814,-500.0,0.00024657,2]
[326632536,1715170240823,-500.0,0.00024657,2]
[326632538,1715170240832,-500.0,0.00024657,2]
[326632540,1715170240841,-500.0,0.00024657,2]
[326632542,1715170240850,-500.0,0.00024657,2]
[326632544,1715170240860,-500.0,0.00024657,2]
[326632546,1715170240870,-500.0,0.00024657,2]
[326632548,1715170240879,-500.0,0.00024657,2]
[326632550,1715170240888,-500.0,0.00024657,2]
[326632552,1715170240897,-500.0,0.00024657,2]
[326632554,1715170240907,-500.0,0.00024657,2]
[326632556,1715170240915,-500.0,0.00024657,2]
[326632558,1715170240924,-500.0,0.00024657,2]
[326632560,1715170240934,-500.0,0.00024657,2]
[326632562,1715170240943,-500.0,0.00024657,2]
[326632564,1715170240952,-500.0,0.00024657,2]
[326632566,1715170240961,-275.9647273,0.00024657,2]
[326632855,1715170242793,-224.0352727,0.00024657,2]
[326632856,1715170242802,-500.0,0.00024657,2]
[326632858,1715170242812,-500.0,0.00024657,2]
[326632860,1715170242821,-500.0,0.00024657,2]
[326632862,1715170242830,-500.0,0.00024657,2]
[326632864,1715170242839,-500.0,0.00024657,2]
[326632865,1715170242848,-500.0,0.00024657,2]
[326632867,1715170242857,-500.0,0.00024657,2]
[326632869,1715170242866,-500.0,0.00024657,2]
[326632871,1715170242875,-596.76,0.00024657,2]
[326632872,1715170242884,-500.0,0.00024657,2]
[326632880,1715170242995,-628.04,0.00024657,2]
[326632882,1715170243004,-500.0,0.00024657,2]
[326632884,1715170243014,-516.60238426,0.00024657,2]
[326632886,1715170243023,-500.0,0.00024657,2]
[326632888,1715170243032,-500.0,0.00024657,2]
[326632889,1715170243042,-500.0,0.00024657,2]
[326632891,1715170243051,-500.0,0.00024657,2]
[326632893,1715170243060,-500.0,0.00024657,2]
[326632895,1715170243070,-623.96,0.00024657,2]
[326632897,1715170243079,-151.0,0.00024657,2]
[326632899,1715170243088,-500.0,0.00024657,2]
[326632900,1715170243097,-579.67,0.00024657,2]
[326632902,1715170243108,-500.0,0.00024657,2]
[326632904,1715170243117,-501.65969193,0.00024657,2]
[326632906,1715170243126,-500.0,0.00024657,2]
[326632908,1715170243135,-500.0,0.00024657,2]
[326632909,1715170243144,-500.0,0.00024657,2]
[326632911,1715170243153,-257.7313672,0.00024657,2]
[326632913,1715170243162,-500.0,0.00024657,2]
[326632915,1715170243172,-500.0,0.00024657,2]
[326632917,1715170243181,-500.0,0.00024657,2]
[326632919,1715170243191,-171.79236116,0.00024657,2]
[326632921,1715170243200,-500.0,0.00024657,2]
[326632922,1715170243209,-500.0,0.00024657,2]
[326632924,1715170243219,-500.0,0.00024657,2]
[326632926,1715170243228,-500.0,0.00024657,2]
[326632928,1715170243237,-550.7,0.00024657,2]
[326632930,1715170243246,-500.0,0.00024657,2]
[326632931,1715170243255,-592.84,0.00024657,2]
[326632933,1715170243264,-554.34410895,0.00024657,2]
[326632935,1715170243275,-501.05,0.00024657,2]
[326632937,1715170243284,-500.0,0.00024657,2]
[326632939,1715170243294,-500.0,0.00024657,2]
[326632941,1715170243303,-500.0,0.00024657,2]
[326632942,1715170243312,-500.0,0.00024657,2]
[326632944,1715170243321,-500.0,0.00024657,2]
[326632946,1715170243330,-500.0,0.00024657,2]
[326632948,1715170243339,-500.0,0.00024657,2]
[326632950,1715170243348,-500.0,0.00024657,2]
[326632951,1715170243359,-500.0,0.00024657,2]
[326632953,1715170243368,-500.0,0.00024657,2]
[326632955,1715170243377,-500.0,0.00024657,2]
[326632957,1715170243386,-500.0,0.00024657,2]
[326632959,1715170243396,-500.0,0.00024657,2]
[326632960,1715170243405,-500.0,0.00024657,2]
[326632962,1715170243415,-500.0,0.00024657,2]
[326632964,1715170243429,-500.0,0.00024657,2]
[326632966,1715170243442,-500.0,0.00024657,2]
[326632968,1715170243452,-500.0,0.00024657,2]
[326632970,1715170243463,-500.0,0.00024657,2]
[326632972,1715170243472,-500.0,0.00024657,2]
[326632974,1715170243481,-500.0,0.00024657,2]
[326632976,1715170243490,-500.0,0.00024657,2]
[326632978,1715170243501,-500.0,0.00024657,2]
[326632980,1715170243511,-500.0,0.00024657,2]
[326632982,1715170243521,-500.0,0.00024657,2]
[326632983,1715170243530,-541.45,0.00024657,2]
[326632984,1715170243539,-500.0,0.00024657,2]
[326632985,1715170243548,-500.0,0.00024657,2]
[326632986,1715170243557,-500.0,0.00024657,2]
[326632987,1715170243566,-500.0,0.00024657,2]
[326632988,1715170243575,-500.0,0.00024657,2]
[326632989,1715170243583,-500.0,0.00024657,2]
[326632990,1715170243592,-969.6,0.00024657,2]
[326632991,1715170243601,-500.0,0.00024657,2]
[326632992,1715170243611,-512.02,0.00024657,2]
[326632993,1715170243620,-577.73,0.00024657,2]
[326632994,1715170243629,-804.23,0.00024657,2]
[326632995,1715170243640,-393.23427573,0.00024657,2]
[326632996,1715170243649,-500.0,0.00024657,2]
[326632997,1715170243659,-554.37,0.00024657,2]
[326632998,1715170243668,-500.0,0.00024657,2]
[326632999,1715170243677,-500.0,0.00024657,2]
[326633001,1715170243687,-500.0,0.00024657,2]
[326633002,1715170243696,-500.0,0.00024657,2]
[326633004,1715170243705,-500.0,0.00024657,2]
[326633006,1715170243714,-500.0,0.00024657,2]
[326633008,1715170243723,-599.37,0.00024657,2]
[326633010,1715170243733,-500.0,0.00024657,2]
[326633012,1715170243742,-500.0,0.00024657,2]
[326633014,1715170243751,-500.0,0.00024657,2]
[326633016,1715170243761,-500.0,0.00024657,2]
[326633018,1715170243772,-500.0,0.00024657,2]
[326633020,1715170243781,-578.22,0.00024657,2]
[326633022,1715170243790,-500.0,0.00024657,2]
[326633024,1715170243800,-255.92891816,0.00024657,2]
[326633026,1715170243809,-500.0,0.00024657,2]
[326633028,1715170243818,-1232.83,0.00024657,2]
[326633030,1715170243827,-500.0,0.00024657,2]
[326633032,1715170243837,-500.0,0.00024657,2]
[326633034,1715170243846,-510.47,0.00024657,2]
[326633036,1715170243855,-500.0,0.00024657,2]
[326633038,1715170243866,-434.32977983,0.00024657,2]
[326633040,1715170243875,-500.0,0.00024657,2]
[326633042,1715170243885,-500.0,0.00024657,2]
[326633044,1715170243894,-500.0,0.00024657,2]
[326633046,1715170243904,-560.24,0.00024657,2]
[326633048,1715170243913,-500.0,0.00024657,2]
[326633050,1715170243922,-500.0,0.00024657,2]
[326633052,1715170243932,-500.0,0.00024657,2]
[326633054,1715170243941,-500.0,0.00024657,2]
[326633057,1715170243950,-500.0,0.00024657,2]
[326633059,1715170243960,-615.89,0.00024657,2]
[326633060,1715170243969,-500.0,0.00024657,2]
[326633063,1715170243979,-500.0,0.00024657,2]
[326633065,1715170243988,-500.0,0.00024657,2]
[326633067,1715170243997,-503.19996144,0.00024657,2]
[326633069,1715170244007,-500.0,0.00024657,2]
[326633071,1715170244017,-500.0,0.00024657,2]
[326633073,1715170244027,-500.0,0.00024657,2]
[326633075,1715170244037,-500.0,0.00024657,2]
[326633077,1715170244047,-500.0,0.00024657,2]
[326633079,1715170244056,-500.0,0.00024657,2]
[326633081,1715170244065,-500.0,0.00024657,2]
[326633083,1715170244074,-500.0,0.00024657,2]
[326633085,1715170244084,-500.0,0.00024657,2]
[326633087,1715170244094,-500.0,0.00024657,2]
[326633089,1715170244104,-500.0,0.00024657,2]
[326633091,1715170244116,-500.0,0.00024657,2]
[326633093,1715170244132,-500.0,0.00024657,2]
[326633095,1715170244142,-500.0,0.00024657,2]
[326633097,1715170244152,-500.0,0.00024657,2]
[326633099,1715170244162,-500.0,0.00024657,2]
[326633101,1715170244172,-500.0,0.00024657,2]
[326633103,1715170244181,-500.0,0.00024657,2]
[326633105,1715170244191,-562.07127069,0.00024657,2]
[326633106,1715170244200,-1028.09,0.00024657,2]
[326633109,1715170244210,-500.0,0.00024657,2]
[326633110,1715170244220,-500.0,0.00024657,2]
[326633112,1715170244230,-500.0,0.00024657,2]
[326633114,1715170244239,-500.0,0.00024657,2]
[326633116,1715170244248,-500.0,0.00024657,2]
[326633118,1715170244257,-500.0,0.00024657,2]
[326633120,1715170244267,-500.0,0.00024657,2]
[326633122,1715170244276,-500.0,0.00024657,2]
[326633124,1715170244286,-500.0,0.00024657,2]
[326633126,1715170244295,-500.0,0.00024657,2]
[326633128,1715170244304,-500.0,0.00024657,2]
[326633129,1715170244316,-500.0,0.00024657,2]
[326633131,1715170244325,-500.0,0.00024657,2]
[326633134,1715170244335,-500.0,0.00024657,2]
[326633136,1715170244344,-500.0,0.00024657,2]
[326633138,1715170244354,-500.0,0.00024657,2]
[326633140,1715170244364,-609.94636754,0.00024657,2]
[326633142,1715170244373,-500.0,0.00024657,2]
[326633143,1715170244384,-719.86,0.00024657,2]
[326633145,1715170244393,-500.0,0.00024657,2]
[326633147,1715170244403,-500.0,0.00024657,2]
[326633149,1715170244413,-500.0,0.00024657,2]
[326633151,1715170244424,-1644.11,0.00024657,2]
[326633153,1715170244434,-200.0,0.00024658,15]
[326633156,1715170244444,-380.0,0.00024658,2]
[326633157,1715170244453,-500.0,0.00024931,2]
[326633159,1715170244463,-150.4,0.00024931,2]
[326633161,1715170244473,-574.36,0.00024931,2]
[326633164,1715170244482,-213.6,0.00024931,2]
[326633166,1715170244491,-261.89,0.00024931,2]
[326633168,1715170244502,-539.80773188,0.00024931,2]
[326633170,1715170244512,-500.0,0.00024931,2]
[326633171,1715170244523,-500.0,0.00024931,2]
[326633174,1715170244532,-500.0,0.00024931,2]
[326633176,1715170244541,-243.08,0.00024931,2]
[326633178,1715170244552,-500.0,0.00024931,2]
[326633180,1715170244562,-500.0,0.00024931,2]
[326633182,1715170244570,-500.0,0.00024931,2]
[326633184,1715170244579,-163.02,0.00024931,2]
[326633186,1715170244588,-207.07,0.00024931,2]
[326633187,1715170244598,-500.0,0.00024931,2]
[326633190,1715170244608,-500.0,0.00024931,2]
[326633192,1715170244622,-151.0,0.00024931,2]
[326633194,1715170244631,-244.11,0.00024931,2]
[326633196,1715170244641,-500.0,0.00024931,2]
[326633198,1715170244650,-229.24,0.00024931,2]
[326633200,1715170244659,-500.0,0.00024931,2]
[326633202,1715170244668,-500.0,0.00024931,2]
[326633204,1715170244677,-500.0,0.00024931,2]
[326633206,1715170244687,-607.75,0.00024931,2]
[326633208,1715170244696,-500.0,0.00024931,2]
[326633210,1715170244707,-500.0,0.00024931,2]
[326633212,1715170244720,-320.97,0.00024931,2]
[326633214,1715170244730,-500.0,0.00024931,2]
[326633216,1715170244739,-500.0,0.00024931,2]
[326633218,1715170244748,-354.89,0.00024931,2]
[326633220,1715170244758,-500.0,0.00024931,2]
[326633222,1715170244767,-500.0,0.00024931,2]
[326633224,1715170244779,-500.0,0.00024931,2]
[326633226,1715170244788,-541.45,0.00024931,2]
[326633229,1715170244808,-500.0,0.00024931,2]
[326633231,1715170244817,-500.0,0.00024931,2]
[326633233,1715170244827,-278.30982669,0.00024931,2]
[326633235,1715170244836,-969.6,0.00024931,2]
[326633237,1715170244846,-460.58633166,0.00024931,2]
[326633239,1715170244856,-804.23,0.00024931,2]
[326633241,1715170244866,-439.21,0.00024931,2]
[326633243,1715170244875,-500.0,0.00024931,2]
[326633245,1715170244885,-577.14,0.00024931,2]
[326633247,1715170244895,-604.09185709,0.00024931,2]
[326633249,1715170244904,-500.0,0.00024931,2]
[326633251,1715170244913,-500.0,0.00024931,2]
[326633253,1715170244923,-1232.83,0.00024931,2]
[326633255,1715170244933,-500.0,0.00024931,2]
[326633257,1715170244942,-510.47,0.00024931,2]
[326633259,1715170244952,-641.47,0.00024931,2]
[326633261,1715170244961,-500.0,0.00024931,2]
[326633263,1715170244971,-615.89,0.00024931,2]
[326633266,1715170244981,-500.0,0.00024931,2]
[326633267,1715170244991,-500.0,0.00024931,2]
[326633270,1715170245000,-500.0,0.00024931,2]
[326633272,1715170245010,-500.0,0.00024931,2]
[326633274,1715170245020,-500.0,0.00024931,2]
[326633276,1715170245031,-500.0,0.00024931,2]
[326633278,1715170245041,-500.0,0.00024931,2]
[326633280,1715170245051,-500.0,0.00024931,2]
[326633282,1715170245060,-500.0,0.00024931,2]
[326633284,1715170245070,-590.37,0.00024931,2]
[326633286,1715170245079,-500.0,0.00024931,2]
[326633288,1715170245089,-300.51637967,0.00024931,2]
[326633290,1715170245099,-1028.09,0.00024931,2]
[326633292,1715170245108,-405.76,0.00024931,2]
[326633294,1715170245118,-521.96,0.00024931,2]
[326633296,1715170245127,-500.0,0.00024931,2]
[326633298,1715170245138,-500.0,0.00024931,2]
[326633300,1715170245148,-232.43,0.00024931,2]
[326633302,1715170245157,-500.0,0.00024931,2]
[326633304,1715170245166,-511.17412863,0.00024931,2]
[326633306,1715170245175,-518.8967963,0.00024931,2]
[326633308,1715170245185,-500.0,0.00024931,2]
[326633310,1715170245195,-500.0,0.00024931,2]
[326633312,1715170245205,-500.0,0.00024931,2]
[326633314,1715170245214,-500.0,0.00024931,2]
[326633316,1715170245223,-719.86,0.00024931,2]
[326633318,1715170245232,-562.05,0.00024931,2]
[326633320,1715170245242,-500.0,0.00024931,2]
[326633322,1715170245251,-1644.11,0.00024931,2]
[326633324,1715170245261,-400.02877114,0.00025,2]
[326633326,1715170245271,-35677.61152197,0.0002509,2]
[326633328,1715170245281,-597.96517389,0.00025118,2]
[326633330,1715170245290,-500.0,0.00025205,2]
[326633332,1715170245299,-500.0,0.00025205,2]
[326633334,1715170245309,-500.0,0.00025205,2]
[326633336,1715170245318,-162.49,0.00025205,2]
[326633338,1715170245327,-500.0,0.00025205,2]
[326633340,1715170245337,-308.26,0.00025205,2]
[326633342,1715170245356,-355.33,0.00025205,2]
[326633344,1715170245369,-500.0,0.00025205,2]
[326633346,1715170245379,-500.0,0.00025205,2]
[326633348,1715170245388,-500.0,0.00025205,2]
[326633350,1715170245397,-500.0,0.00025205,2]
[326633352,1715170245407,-500.0,0.00025205,2]
[326633354,1715170245417,-154.94299777,0.00025205,2]
[326633356,1715170245431,-500.0,0.00025205,2]
[326633358,1715170245441,-541.45,0.00025205,2]
[326633360,1715170245450,-500.0,0.00025205,2]
[326633362,1715170245459,-500.0,0.00025205,2]
[326633364,1715170245469,-969.6,0.00025205,2]
[326633366,1715170245478,-804.23,0.00025205,2]
[326633368,1715170245488,-340.77,0.00025205,2]
[326633370,1715170245497,-500.0,0.00025205,2]
[326633372,1715170245509,-1232.83,0.00025205,2]
[326633374,1715170245518,-322.55,0.00025205,2]
[326633376,1715170245527,-510.47,0.00025205,2]
[326633378,1715170245537,-615.89,0.00025205,2]
[326633380,1715170245546,-168.72,0.00025205,2]
[326633382,1715170245555,-500.0,0.00025205,2]
[326633384,1715170245565,-500.0,0.00025205,2]
[326633386,1715170245574,-500.0,0.00025205,2]
[326633388,1715170245584,-581.66,0.00025205,2]
[326633390,1715170245594,-500.0,0.00025205,2]
[326633392,1715170245604,-500.0,0.00025205,2]
[326633394,1715170245615,-500.0,0.00025205,2]
[326633409,1715170245749,-457.9,0.00025205,2]
[326633411,1715170245759,-500.0,0.00025205,2]
[326633413,1715170245769,-1028.09,0.00025205,2]
[326633415,1715170245780,-500.0,0.00025205,2]
[326633417,1715170245789,-500.0,0.00025205,2]
[326633420,1715170245799,-420.39,0.00025205,2]
[326633422,1715170245809,-182.26,0.00025205,2]
[326633424,1715170245818,-500.0,0.00025205,2]
[326633426,1715170245828,-500.0,0.00025205,2]
[326633428,1715170245838,-719.86,0.00025205,2]
[326633430,1715170245847,-1644.11,0.00025205,2]
[326633432,1715170245857,-1008.72800577,0.00025479,5]
[326633434,1715170245867,-500.0,0.00025479,2]
[326633435,1715170245876,-500.0,0.00025479,2]
[326633437,1715170245887,-500.0,0.00025479,2]
[326633439,1715170245896,-500.0,0.00025479,2]
[326633442,1715170245906,-374.88,0.00025479,2]
[326633444,1715170245915,-500.0,0.00025479,2]
[326633445,1715170245925,-500.0,0.00025479,2]
[326633447,1715170245934,-301.7732126,0.00025479,2]
[326633450,1715170245944,-500.0,0.00025479,2]
[326633451,1715170245953,-500.0,0.00025479,2]
[326633453,1715170245962,-541.45,0.00025479,2]
[326633455,1715170245972,-500.0,0.00025479,2]
[326633457,1715170245981,-500.0,0.00025479,2]
[326633460,1715170245997,-969.6,0.00025479,2]
[326633461,1715170246016,-804.23,0.00025479,2]
[326633463,1715170246026,-500.0,0.00025479,2]
[326633465,1715170246035,-1232.83,0.00025479,2]
[326633468,1715170246045,-510.47,0.00025479,2]
[326633470,1715170246054,-615.89,0.00025479,2]
[326633472,1715170246064,-500.0,0.00025479,2]
[326633474,1715170246073,-500.0,0.00025479,2]
[326633475,1715170246082,-500.0,0.00025479,2]
[326633477,1715170246091,-500.0,0.00025479,2]
[326633479,1715170246100,-500.0,0.00025479,2]
[326633481,1715170246110,-578.36,0.00025479,2]
[326633483,1715170246119,-1028.09,0.00025479,2]
[326633485,1715170246128,-500.0,0.00025479,2]
[326633487,1715170246138,-500.0,0.00025479,2]
[326633489,1715170246147,-500.0,0.00025479,2]
[326633491,1715170246157,-719.86,0.00025479,2]
[326633493,1715170246166,-597.96517389,0.00025679,2]
[326633495,1715170246177,-331.29,0.00025753,2]
[326633497,1715170246186,-500.0,0.00025753,2]
[326633499,1715170246195,-500.0,0.00025753,2]
[326633501,1715170246204,-500.0,0.00025753,2]
[326633503,1715170246213,-500.0,0.00025753,2]
[326633505,1715170246222,-190.70622353,0.00025753,2]
[326633507,1715170246232,-500.0,0.00025753,2]
[326633509,1715170246242,-577.85106215,0.00025753,2]
[326633511,1715170246252,-541.45,0.00025753,2]
[326633513,1715170246261,-500.0,0.00025753,2]
[326633515,1715170246271,-500.0,0.00025753,2]
[326633517,1715170246280,-969.6,0.00025753,2]
[326633519,1715170246291,-804.23,0.00025753,2]
[326633521,1715170246300,-284.9,0.00025753,2]
[326633523,1715170246309,-1232.83,0.00025753,2]
[326633525,1715170246319,-510.47,0.00025753,2]
[326633527,1715170246328,-615.89,0.00025753,2]
[326633529,1715170246338,-629.16,0.00025753,2]
[326633531,1715170246348,-500.0,0.00025753,2]
[326633533,1715170246357,-500.0,0.00025753,2]
[326633536,1715170246368,-500.0,0.00025753,2]
[326633538,1715170246377,-500.0,0.00025753,2]
[326633540,1715170246386,-1028.09,0.00025753,2]
[326633542,1715170246395,-500.0,0.00025753,2]
[326633543,1715170246405,-580.23,0.00025753,2]
[326633546,1715170246414,-500.0,0.00025753,2]
[326633547,1715170246424,-719.86,0.00025753,2]
[326633549,1715170246436,-151.0,0.00026027,2]
[326633552,1715170246446,-151.0,0.00026027,2]
[326633554,1715170246455,-151.894999,0.00026027,2]
[326633556,1715170246466,-500.0,0.00026027,2]
[326633558,1715170246476,-500.0,0.00026027,2]
[326633560,1715170246486,-337.61,0.00026027,2]
[326633562,1715170246496,-468.2,0.00026027,2]
[326633564,1715170246506,-151.0,0.00026027,2]
[326633565,1715170246516,-151.0,0.00026027,2]
[326633567,1715170246527,-500.0,0.00026027,2]
[326633569,1715170246536,-151.0,0.00026027,2]
[326633571,1715170246545,-151.0,0.00026027,2]
[326633573,1715170246555,-220.841311,0.00026027,2]
[326633575,1715170246564,-541.45,0.00026027,2]
[326633577,1715170246574,-500.0,0.00026027,2]
[326633578,1715170246584,-151.0,0.00026027,2]
[326633579,1715170246600,-500.0,0.00026027,2]
[326633580,1715170246615,-969.6,0.00026027,2]
[326633581,1715170246625,-804.23,0.00026027,2]
[326633582,1715170246634,-1232.83,0.00026027,2]
[326633583,1715170246644,-510.47,0.00026027,2]
[326633584,1715170246654,-151.0,0.00026027,2]
[326633585,1715170246664,-151.0,0.00026027,2]
[326633586,1715170246674,-151.0,0.00026027,2]
[326633587,1715170246683,-151.188848,0.00026027,2]
[326633588,1715170246694,-659.993595,0.00026027,2]
[326633590,1715170246703,-151.377895,0.00026027,2]
[326633592,1715170246712,-615.89,0.00026027,2]
[326633593,1715170246721,-659.993595,0.00026027,2]
[326633595,1715170246731,-500.0,0.00026027,2]
[326633597,1715170246740,-1404.988856,0.00026027,2]
[326633599,1715170246749,-1404.988856,0.00026027,2]
[326633601,1715170246759,-500.0,0.00026027,2]
[326633603,1715170246768,-151.0,0.00026027,2]
[326633605,1715170246780,-500.0,0.00026027,2]
[326633607,1715170246790,-500.0,0.00026027,2]
[326633609,1715170246799,-1028.09,0.00026027,2]
[326633611,1715170246808,-156.50257,0.00026027,2]
[326633613,1715170246817,-500.0,0.00026027,2]
[326633615,1715170246827,-156.50257,0.00026027,2]
[326633617,1715170246836,-622.581669,0.00026027,2]
[326633619,1715170246845,-622.581669,0.00026027,2]
[326633621,1715170246855,-500.0,0.00026027,2]
[326633623,1715170246865,-719.86,0.00026027,2]
[326633625,1715170246874,-597.96517389,0.00026239,2]
[326633627,1715170246884,-151.0,0.00026301,2]
[326633629,1715170246894,-293.06049,0.00026301,2]
[326633632,1715170246903,-151.0,0.00026301,2]
[326633635,1715170246913,-500.0,0.00026301,2]
[326633637,1715170246923,-500.0,0.00026301,2]
[326633639,1715170246932,-151.0,0.00026301,2]
[326633641,1715170246941,-500.0,0.00026301,2]
[326633643,1715170246950,-541.45,0.00026301,2]
[326633645,1715170246959,-163.39,0.00026301,2]
[326633647,1715170246969,-502.25,0.00026301,2]
[326633649,1715170246978,-969.6,0.00026301,2]
[326633651,1715170246987,-804.23,0.00026301,2]
[326633653,1715170246996,-1232.83,0.00026301,2]
[326633655,1715170247005,-510.47,0.00026301,2]
[326633657,1715170247015,-615.89,0.00026301,2]